[Event "Titled Tuesday Blitz July 6 2021"]
[White "Nguyen, Quoc Hy"]
[Black "Obregon, Andres Carlos"]
[WhiteFideId "12410853"]
[BlackFideId "111724"]
[WhiteElo "1975"]
[BlackElo "2572"]
[Result "0-1"]
[Round "10"]
[TimeControl "180+1"]
[Date "2021.07.06"]
[WhiteClock "0:00:04"]
[BlackClock "0:00:09"]

1. d4 {[%clk 0:02:55]}  Nf6 {[%clk 0:02:59]} 2. c4 {[%clk 0:02:56]}  e6 {[%clk 0:02:59]} 3. Nc3 {[%clk 0:02:55]}  Bb4 {[%clk 0:02:58]} 4. Qc2 {[%clk 0:02:55]}  O-O {[%clk 0:02:56]} 5. Nf3 {[%clk 0:02:55]}  d6 {[%clk 0:02:54]} 6. e4 {[%clk 0:02:54]}  e5 {[%clk 0:02:53]} 7. Bd3 {[%clk 0:02:52]}  Nc6 {[%clk 0:02:50]} 8. d5 {[%clk 0:02:42]}  Ne7 {[%clk 0:02:44]} 9. O-O {[%clk 0:02:41]}  Bg4 {[%clk 0:02:33]} 10. Nd2 {[%clk 0:02:27]}  c6 {[%clk 0:02:25]} 11. a3 {[%clk 0:02:22]}  Bc5 {[%clk 0:02:25]} 12. b4 {[%clk 0:02:21]}  Bb6 {[%clk 0:02:22]} 13. Na4 {[%clk 0:02:19]}  Bd4 {[%clk 0:02:22]} 14. Bb2 {[%clk 0:02:19]}  Bxb2 {[%clk 0:02:21]} 15. Qxb2 {[%clk 0:02:15]}  cxd5 {[%clk 0:02:19]} 16. cxd5 {[%clk 0:02:02]}  Ng6 {[%clk 0:02:17]} 17. Rfc1 {[%clk 0:02:00]}  Nf4 {[%clk 0:02:15]} 18. Bf1 {[%clk 0:02:00]}  N6h5 {[%clk 0:02:05]} 19. f3 {[%clk 0:01:53]}  Bd7 {[%clk 0:02:02]} 20. Nc3 {[%clk 0:01:49]}  Qg5 {[%clk 0:02:02]} 21. Nc4 {[%clk 0:01:42]}  Qg6 {[%clk 0:01:20]} 22. Na5 {[%clk 0:01:30]}  f5 {[%clk 0:01:07]} 23. Nxb7 {[%clk 0:01:24]}  fxe4 {[%clk 0:01:07]} 24. Nxe4 {[%clk 0:01:23]}  Nh3+ {[%clk 0:01:07]} 25. Kh1 {[%clk 0:01:21]}  Rxf3 {[%clk 0:01:07]} 26. Nbxd6 {[%clk 0:01:13]}  Nf6 {[%clk 0:00:42]} 27. Qe2 {[%clk 0:00:21]}  Nxe4 {[%clk 0:00:40]} 28. Nxe4 {[%clk 0:00:18]}  Rf4 {[%clk 0:00:37]} 29. Ng3 {[%clk 0:00:17]}  Nf2+ {[%clk 0:00:34]} 30. Kg1 {[%clk 0:00:17]}  e4 {[%clk 0:00:28]} 31. Rc7 {[%clk 0:00:16]}  Bg4 {[%clk 0:00:27]} 32. Qe3 {[%clk 0:00:15]}  Raf8 {[%clk 0:00:26]} 33. Rac1 {[%clk 0:00:14]}  h5 {[%clk 0:00:25]} 34. R7c6 {[%clk 0:00:09]}  Qg5 {[%clk 0:00:25]} 35. d6 {[%clk 0:00:07]}  h4 {[%clk 0:00:20]} 36. R6c5 {[%clk 0:00:05]}  Qf6 {[%clk 0:00:15]} 37. d7 {[%clk 0:00:03]}  hxg3 {[%clk 0:00:13]} 38. hxg3 {[%clk 0:00:03]}  Nh3+ {[%clk 0:00:10]} 39. Kh2 {[%clk 0:00:04]}  Rxf1 {[%clk 0:00:10]} 40. Rxf1 {[%clk 0:00:04]}  Qxf1 {[%clk 0:00:10]} 41. Rc8 {[%clk 0:00:03]}  Bxd7 {[%clk 0:00:10]} 42. Rxf8+ {[%clk 0:00:03]}  Qxf8 {[%clk 0:00:08]} 43. gxh3 {[%clk 0:00:03]}  Qf3 {[%clk 0:00:08]} 44. Qxf3 {[%clk 0:00:03]}  exf3 {[%clk 0:00:08]} 45. g4 {[%clk 0:00:03]}  Kf7 {[%clk 0:00:09]} 46. Kg3 {[%clk 0:00:04]}  Bc6 {[%clk 0:00:09]} 47. h4 {[%clk 0:00:04]}  Ke6 {[%clk 0:00:09]} 48. h5 {[%clk 0:00:03]}  Kf6 {[%clk 0:00:09]} 49. a4 {[%clk 0:00:03]}  Bxa4 {[%clk 0:00:09]} 50. Kxf3 {[%clk 0:00:04]}  Kg5 {[%clk 0:00:09]} 0-1


[Site "https://www.chess.com"]

[Event "Titled Tuesday Blitz July 6 2021"]
[White "Oliveira, Silvio Eduardo"]
[Black "Kukhmazov, Arsen"]
[WhiteFideId "2111560"]
[BlackFideId "24108260"]
[WhiteElo "2302"]
[BlackElo "2453"]
[Result "1-0"]
[Round "10"]
[TimeControl "180+1"]
[Date "2021.07.06"]
[WhiteClock "0:00:17"]
[BlackClock "0:00:05"]

1. e4 {[%clk 0:02:58]}  c6 {[%clk 0:02:59]} 2. d4 {[%clk 0:02:58]}  d5 {[%clk 0:03:00]} 3. exd5 {[%clk 0:02:59]}  cxd5 {[%clk 0:03:00]} 4. Bd3 {[%clk 0:03:00]}  Nc6 {[%clk 0:03:00]} 5. c3 {[%clk 0:03:00]}  Qc7 {[%clk 0:03:01]} 6. Ne2 {[%clk 0:03:00]}  Bg4 {[%clk 0:03:01]} 7. O-O {[%clk 0:03:01]}  e6 {[%clk 0:03:01]} 8. Qe1 {[%clk 0:03:00]}  Nf6 {[%clk 0:03:02]} 9. Bg5 {[%clk 0:02:59]}  h6 {[%clk 0:03:02]} 10. Bf4 {[%clk 0:02:53]}  Bd6 {[%clk 0:02:48]} 11. Bxd6 {[%clk 0:02:52]}  Qxd6 {[%clk 0:02:49]} 12. f3 {[%clk 0:02:52]}  Bh5 {[%clk 0:02:44]} 13. f4 {[%clk 0:02:20]}  Ne7 {[%clk 0:02:32]} 14. Nd2 {[%clk 0:02:16]}  O-O {[%clk 0:02:24]} 15. Ng3 {[%clk 0:02:10]}  Bg6 {[%clk 0:02:23]} 16. Bxg6 {[%clk 0:02:10]}  Nxg6 {[%clk 0:02:13]} 17. f5 {[%clk 0:02:09]}  exf5 {[%clk 0:02:13]} 18. Nxf5 {[%clk 0:02:09]}  Qd7 {[%clk 0:02:14]} 19. Nxh6+ {[%clk 0:02:08]}  gxh6 {[%clk 0:02:14]} 20. Rxf6 {[%clk 0:02:08]}  Rae8 {[%clk 0:02:14]} 21. Qf2 {[%clk 0:02:06]}  Qg4 {[%clk 0:02:02]} 22. Rf3 {[%clk 0:01:38]}  Re7 {[%clk 0:01:52]} 23. Nf1 {[%clk 0:01:38]}  Rfe8 {[%clk 0:01:39]} 24. Ne3 {[%clk 0:01:37]}  Qg5 {[%clk 0:01:40]} 25. Rg3 {[%clk 0:01:30]}  Qh5 {[%clk 0:01:30]} 26. Rf1 {[%clk 0:01:23]}  Kh7 {[%clk 0:01:05]} 27. Qf6 {[%clk 0:01:04]}  Qe2 {[%clk 0:00:19]} 28. Nxd5 {[%clk 0:00:35]}  Rd7 {[%clk 0:00:05]} 29. Nf4 {[%clk 0:00:30]}  Qe4 {[%clk 0:00:04]} 30. Nh5 {[%clk 0:00:24]}  Rg8 {[%clk 0:00:05]} 31. Qf2 {[%clk 0:00:17]} 1-0


[Site "https://www.chess.com"]

[Event "Titled Tuesday Blitz July 6 2021"]
[White "Omariev, Maksim"]
[Black "Piesik, Piotr"]
[WhiteFideId "4193423"]
[BlackFideId "1136194"]
[WhiteElo "2388"]
[BlackElo "2354"]
[Result "0-1"]
[Round "10"]
[TimeControl "180+1"]
[Date "2021.07.06"]
[WhiteClock "0:00:04"]
[BlackClock "0:00:44"]

1. g4 {[%clk 0:03:00]}  d5 {[%clk 0:02:59]} 2. Bg2 {[%clk 0:03:00]}  c6 {[%clk 0:03:00]} 3. g5 {[%clk 0:02:57]}  e5 {[%clk 0:02:56]} 4. d4 {[%clk 0:02:57]}  e4 {[%clk 0:02:55]} 5. h4 {[%clk 0:02:56]}  Be7 {[%clk 0:02:52]} 6. c4 {[%clk 0:02:57]}  h6 {[%clk 0:02:51]} 7. f4 {[%clk 0:02:50]}  exf3 {[%clk 0:02:47]} 8. Nxf3 {[%clk 0:02:49]}  dxc4 {[%clk 0:02:37]} 9. g6 {[%clk 0:02:32]}  fxg6 {[%clk 0:02:35]} 10. Qc2 {[%clk 0:02:32]}  Bf5 {[%clk 0:02:31]} 11. Qxc4 {[%clk 0:02:27]}  Nf6 {[%clk 0:02:31]} 12. Ne5 {[%clk 0:02:21]}  Rf8 {[%clk 0:02:24]} 13. Nc3 {[%clk 0:02:16]}  Nbd7 {[%clk 0:02:19]} 14. e4 {[%clk 0:02:01]}  Nb6 {[%clk 0:02:19]} 15. Qd3 {[%clk 0:01:46]}  Ng4 {[%clk 0:02:10]} 16. Bf4 {[%clk 0:00:54]}  Bxh4+ {[%clk 0:02:01]} 17. Rxh4 {[%clk 0:00:29]}  Qxh4+ {[%clk 0:01:59]} 18. Bg3 {[%clk 0:00:29]}  Nxe5 {[%clk 0:01:37]} 19. dxe5 {[%clk 0:00:30]}  Rd8 {[%clk 0:01:21]} 20. Bxh4 {[%clk 0:00:11]}  Rxd3 {[%clk 0:01:21]} 21. exf5 {[%clk 0:00:11]}  gxf5 {[%clk 0:01:21]} 22. Ke2 {[%clk 0:00:09]}  Rd4 {[%clk 0:01:06]} 23. Bf2 {[%clk 0:00:08]}  Rd7 {[%clk 0:01:06]} 24. Bc5 {[%clk 0:00:06]}  Nc4 {[%clk 0:01:00]} 25. Bxf8 {[%clk 0:00:03]}  Kxf8 {[%clk 0:01:01]} 26. Rd1 {[%clk 0:00:03]}  Rxd1 {[%clk 0:01:00]} 27. Kxd1 {[%clk 0:00:04]}  Nxb2+ {[%clk 0:00:56]} 28. Kc2 {[%clk 0:00:03]}  Nc4 {[%clk 0:00:57]} 29. e6 {[%clk 0:00:04]}  Ne3+ {[%clk 0:00:56]} 30. Kd3 {[%clk 0:00:03]}  Nxg2 {[%clk 0:00:57]} 31. Kd4 {[%clk 0:00:04]}  Ke7 {[%clk 0:00:55]} 32. Ke5 {[%clk 0:00:04]}  Nh4 {[%clk 0:00:51]} 33. Ne2 {[%clk 0:00:04]}  g6 {[%clk 0:00:44]} 34. Nf4 {[%clk 0:00:04]}  Nf3# {[%clk 0:00:44]} 0-1


[Site "https://www.chess.com"]

[Event "Titled Tuesday Blitz July 6 2021"]
[White "Pereira, Juliano Resende M"]
[Black "Broca Jimenez, Fernando"]
[WhiteFideId "2109816"]
[BlackFideId "5104742"]
[WhiteElo "2444"]
[BlackElo "2062"]
[Result "1-0"]
[Round "10"]
[TimeControl "180+1"]
[Date "2021.07.06"]
[WhiteClock "0:00:42"]
[BlackClock "0:00:11"]

1. c4 {[%clk 0:03:00]}  Nf6 {[%clk 0:02:59]} 2. d4 {[%clk 0:03:00]}  e6 {[%clk 0:02:59]} 3. e3 {[%clk 0:02:58]}  b6 {[%clk 0:02:55]} 4. Nf3 {[%clk 0:02:57]}  Bb7 {[%clk 0:02:55]} 5. Bd3 {[%clk 0:02:58]}  Be7 {[%clk 0:02:54]} 6. O-O {[%clk 0:02:57]}  d5 {[%clk 0:02:54]} 7. cxd5 {[%clk 0:02:56]}  exd5 {[%clk 0:02:53]} 8. Nc3 {[%clk 0:02:53]}  O-O {[%clk 0:02:54]} 9. b3 {[%clk 0:02:52]}  c5 {[%clk 0:02:54]} 10. Bb2 {[%clk 0:02:51]}  Nc6 {[%clk 0:02:52]} 11. Rc1 {[%clk 0:02:48]}  cxd4 {[%clk 0:02:51]} 12. exd4 {[%clk 0:02:46]}  Rc8 {[%clk 0:02:51]} 13. Bf5 {[%clk 0:02:43]}  Rb8 {[%clk 0:02:40]} 14. Ne5 {[%clk 0:02:42]}  g6 {[%clk 0:02:35]} 15. Bh3 {[%clk 0:02:27]}  Bd6 {[%clk 0:01:37]} 16. Nb5 {[%clk 0:02:26]}  Bxe5 {[%clk 0:01:19]} 17. dxe5 {[%clk 0:02:25]}  Ne4 {[%clk 0:01:19]} 18. f3 {[%clk 0:02:16]}  Ng5 {[%clk 0:01:19]} 19. Bg4 {[%clk 0:02:03]}  Ba6 {[%clk 0:01:18]} 20. a4 {[%clk 0:01:56]}  Bxb5 {[%clk 0:00:53]} 21. axb5 {[%clk 0:01:55]}  Na5 {[%clk 0:00:54]} 22. f4 {[%clk 0:01:53]}  Ne6 {[%clk 0:00:53]} 23. f5 {[%clk 0:01:50]}  gxf5 {[%clk 0:00:42]} 24. Rxf5 {[%clk 0:01:46]}  Qe7 {[%clk 0:00:33]} 25. Qxd5 {[%clk 0:01:32]}  Rbc8 {[%clk 0:00:30]} 26. Rcf1 {[%clk 0:01:27]}  Qc5+ {[%clk 0:00:30]} 27. Qxc5 {[%clk 0:01:27]}  Rxc5 {[%clk 0:00:30]} 28. b4 {[%clk 0:01:27]}  Rxb5 {[%clk 0:00:30]} 29. bxa5 {[%clk 0:01:02]}  Rxb2 {[%clk 0:00:31]} 30. axb6 {[%clk 0:01:01]}  axb6 {[%clk 0:00:26]} 31. Rxf7 {[%clk 0:01:00]}  Rxf7 {[%clk 0:00:18]} 32. Bxe6 {[%clk 0:00:59]}  Kg7 {[%clk 0:00:07]} 33. Rxf7+ {[%clk 0:00:57]}  Kg6 {[%clk 0:00:08]} 34. Rb7 {[%clk 0:00:49]}  b5 {[%clk 0:00:08]} 35. h3 {[%clk 0:00:44]}  b4 {[%clk 0:00:09]} 36. Kh2 {[%clk 0:00:43]}  Rb1 {[%clk 0:00:09]} 37. Bg8 {[%clk 0:00:42]}  Rb2 {[%clk 0:00:10]} 38. Bxh7+ {[%clk 0:00:42]}  Kg5 {[%clk 0:00:10]} 39. e6 {[%clk 0:00:42]}  Kf6 {[%clk 0:00:11]} 40. e7 {[%clk 0:00:42]}  Kf7 {[%clk 0:00:11]} 41. Bg6+ {[%clk 0:00:42]}  Kxg6 {[%clk 0:00:11]} 42. e8=Q+ {[%clk 0:00:42]} 1-0


[Site "https://www.chess.com"]

[Event "Titled Tuesday Blitz July 6 2021"]
[White "Plat, Vojtech"]
[Black "Gelman, Alexander"]
[WhiteFideId "325740"]
[BlackFideId "4118316"]
[WhiteElo "2486"]
[BlackElo "2375"]
[Result "1-0"]
[Round "10"]
[TimeControl "180+1"]
[Date "2021.07.06"]
[WhiteClock "0:00:16"]
[BlackClock "0:00:12"]

1. e4 {[%clk 0:02:01]}  d5 {[%clk 0:02:59]} 2. exd5 {[%clk 0:02:01]}  Qxd5 {[%clk 0:03:00]} 3. Nf3 {[%clk 0:02:00]}  Nc6 {[%clk 0:02:58]} 4. d4 {[%clk 0:02:01]}  Bg4 {[%clk 0:02:48]} 5. Be2 {[%clk 0:02:00]}  O-O-O {[%clk 0:02:31]} 6. c4 {[%clk 0:02:00]}  Qf5 {[%clk 0:02:29]} 7. d5 {[%clk 0:02:00]}  e6 {[%clk 0:02:22]} 8. Nc3 {[%clk 0:01:59]}  Nf6 {[%clk 0:02:15]} 9. h3 {[%clk 0:01:55]}  Bxf3 {[%clk 0:02:11]} 10. Bxf3 {[%clk 0:01:49]}  Ne5 {[%clk 0:02:05]} 11. Be2 {[%clk 0:01:49]}  Bb4 {[%clk 0:02:02]} 12. O-O {[%clk 0:01:47]}  Bxc3 {[%clk 0:01:57]} 13. bxc3 {[%clk 0:01:47]}  exd5 {[%clk 0:01:57]} 14. Qa4 {[%clk 0:01:47]}  a6 {[%clk 0:01:49]} 15. c5 {[%clk 0:01:46]}  Qe4 {[%clk 0:01:43]} 16. Qd1 {[%clk 0:01:39]}  d4 {[%clk 0:01:35]} 17. cxd4 {[%clk 0:01:15]}  Rxd4 {[%clk 0:01:36]} 18. Qe1 {[%clk 0:01:14]}  Nd3 {[%clk 0:01:16]} 19. Bxd3 {[%clk 0:01:01]}  Qxe1 {[%clk 0:01:15]} 20. Bf5+ {[%clk 0:00:59]}  Qe6 {[%clk 0:01:15]} 21. Bxe6+ {[%clk 0:00:59]}  fxe6 {[%clk 0:01:16]} 22. Re1 {[%clk 0:00:58]}  Kd7 {[%clk 0:01:13]} 23. Bb2 {[%clk 0:00:56]}  Rd5 {[%clk 0:01:12]} 24. Rac1 {[%clk 0:00:55]}  c6 {[%clk 0:01:11]} 25. Rb1 {[%clk 0:00:53]}  Ne8 {[%clk 0:00:39]} 26. Bxg7 {[%clk 0:00:52]}  Rg8 {[%clk 0:00:32]} 27. Ba1 {[%clk 0:00:34]}  Kc8 {[%clk 0:00:26]} 28. Rxe6 {[%clk 0:00:33]}  Rxc5 {[%clk 0:00:24]} 29. Re7 {[%clk 0:00:34]}  Rb5 {[%clk 0:00:24]} 30. Rbe1 {[%clk 0:00:31]}  Nd6 {[%clk 0:00:23]} 31. Rxh7 {[%clk 0:00:31]}  Ra5 {[%clk 0:00:19]} 32. Re2 {[%clk 0:00:29]}  Re8 {[%clk 0:00:17]} 33. Rxe8+ {[%clk 0:00:27]}  Nxe8 {[%clk 0:00:17]} 34. Re7 {[%clk 0:00:25]}  Kd8 {[%clk 0:00:17]} 35. Rxb7 {[%clk 0:00:24]}  Rxa2 {[%clk 0:00:16]} 36. Be5 {[%clk 0:00:22]}  c5 {[%clk 0:00:16]} 37. h4 {[%clk 0:00:22]}  c4 {[%clk 0:00:16]} 38. h5 {[%clk 0:00:22]}  Re2 {[%clk 0:00:17]} 39. f4 {[%clk 0:00:21]}  Re3 {[%clk 0:00:12]} 40. h6 {[%clk 0:00:20]}  c3 {[%clk 0:00:12]} 41. h7 {[%clk 0:00:16]}  c2 {[%clk 0:00:12]} 42. Bb2 {[%clk 0:00:16]} 1-0


[Site "https://www.chess.com"]

[Event "Titled Tuesday Blitz July 6 2021"]
[White "Pridorozhni, Aleksei"]
[Black "Dubov, Daniil"]
[WhiteFideId "4127870"]
[BlackFideId "24126055"]
[WhiteElo "2565"]
[BlackElo "2722"]
[Result "0-1"]
[Round "10"]
[TimeControl "180+1"]
[Date "2021.07.06"]
[WhiteClock "0:00:02"]
[BlackClock "0:00:04"]

1. e4 {[%clk 0:03:00]}  e5 {[%clk 0:02:59]} 2. Bc4 {[%clk 0:03:00]}  Nf6 {[%clk 0:02:58]} 3. d3 {[%clk 0:03:00]}  Nc6 {[%clk 0:02:59]} 4. Nc3 {[%clk 0:02:59]}  Na5 {[%clk 0:02:57]} 5. Qf3 {[%clk 0:02:56]}  d6 {[%clk 0:02:49]} 6. h3 {[%clk 0:02:56]}  Be7 {[%clk 0:02:49]} 7. Nge2 {[%clk 0:02:55]}  O-O {[%clk 0:02:48]} 8. g4 {[%clk 0:02:54]}  Nxc4 {[%clk 0:02:44]} 9. dxc4 {[%clk 0:02:55]}  Be6 {[%clk 0:02:45]} 10. b3 {[%clk 0:02:54]}  c6 {[%clk 0:02:45]} 11. g5 {[%clk 0:02:25]}  Nd7 {[%clk 0:02:44]} 12. h4 {[%clk 0:02:26]}  f5 {[%clk 0:02:44]} 13. Ng3 {[%clk 0:02:13]}  fxe4 {[%clk 0:02:36]} 14. Qxe4 {[%clk 0:02:13]}  d5 {[%clk 0:02:37]} 15. Qe2 {[%clk 0:02:06]}  Bb4 {[%clk 0:02:23]} 16. Bd2 {[%clk 0:02:05]}  Qa5 {[%clk 0:02:24]} 17. Nb1 {[%clk 0:02:02]}  dxc4 {[%clk 0:02:21]} 18. Bxb4 {[%clk 0:02:01]}  Qxb4+ {[%clk 0:02:20]} 19. Qd2 {[%clk 0:02:01]}  a5 {[%clk 0:02:09]} 20. Nc3 {[%clk 0:01:40]}  Nc5 {[%clk 0:01:30]} 21. O-O {[%clk 0:01:24]}  cxb3 {[%clk 0:01:29]} 22. axb3 {[%clk 0:01:22]}  Qxh4 {[%clk 0:01:29]} 23. Qe3 {[%clk 0:01:22]}  b6 {[%clk 0:00:53]} 24. Qxe5 {[%clk 0:01:11]}  Rae8 {[%clk 0:00:47]} 25. Rfe1 {[%clk 0:01:06]}  Qh3 {[%clk 0:00:40]} 26. Qd4 {[%clk 0:00:33]}  Bg4 {[%clk 0:00:34]} 27. Rxe8 {[%clk 0:00:32]}  Rxe8 {[%clk 0:00:32]} 28. Qc4+ {[%clk 0:00:21]}  Ne6 {[%clk 0:00:24]} 29. Re1 {[%clk 0:00:14]}  Bf3 {[%clk 0:00:18]} 30. Qf1 {[%clk 0:00:15]}  Qxf1+ {[%clk 0:00:17]} 31. Kxf1 {[%clk 0:00:16]}  Kf7 {[%clk 0:00:17]} 32. Re3 {[%clk 0:00:16]}  Nxg5 {[%clk 0:00:17]} 33. Rd3 {[%clk 0:00:14]}  h5 {[%clk 0:00:16]} 34. Rd4 {[%clk 0:00:12]}  g6 {[%clk 0:00:14]} 35. Nce2 {[%clk 0:00:10]}  Ne6 {[%clk 0:00:12]} 36. Rd3 {[%clk 0:00:10]}  Bxe2+ {[%clk 0:00:11]} 37. Nxe2 {[%clk 0:00:11]}  Rd8 {[%clk 0:00:11]} 38. Rf3+ {[%clk 0:00:10]}  Kg7 {[%clk 0:00:11]} 39. Re3 {[%clk 0:00:10]}  Kf6 {[%clk 0:00:11]} 40. Rf3+ {[%clk 0:00:10]}  Ke7 {[%clk 0:00:11]} 41. Re3 {[%clk 0:00:11]}  Rd6 {[%clk 0:00:10]} 42. Nf4 {[%clk 0:00:10]}  Kf6 {[%clk 0:00:10]} 43. Nd3 {[%clk 0:00:11]}  Nd4 {[%clk 0:00:10]} 44. c3 {[%clk 0:00:10]}  Nxb3 {[%clk 0:00:09]} 45. Nf4 {[%clk 0:00:09]}  Nc5 {[%clk 0:00:08]} 46. Re8 {[%clk 0:00:09]}  a4 {[%clk 0:00:06]} 47. Ra8 {[%clk 0:00:08]}  b5 {[%clk 0:00:06]} 48. Ne2 {[%clk 0:00:08]}  Ne4 {[%clk 0:00:06]} 49. f3 {[%clk 0:00:06]}  Nd2+ {[%clk 0:00:06]} 50. Kf2 {[%clk 0:00:06]}  Nc4 {[%clk 0:00:07]} 51. Nd4 {[%clk 0:00:06]}  a3 {[%clk 0:00:06]} 52. f4 {[%clk 0:00:05]}  b4 {[%clk 0:00:06]} 53. Ra4 {[%clk 0:00:02]}  c5 {[%clk 0:00:04]} 0-1


[Site "https://www.chess.com"]

[Event "Titled Tuesday Blitz July 6 2021"]
[White "Prraneeth Vuppala"]
[Black "Sviridova, Vlada"]
[WhiteFideId "46622373"]
[BlackFideId "24109606"]
[WhiteElo "1759"]
[BlackElo "2101"]
[Result "1/2-1/2"]
[Round "10"]
[TimeControl "180+1"]
[Date "2021.07.06"]
[WhiteClock "0:01:09"]
[BlackClock "0:00:06"]

1. d4 {[%clk 0:03:00]}  d5 {[%clk 0:03:00]} 2. c4 {[%clk 0:03:00]}  c6 {[%clk 0:03:00]} 3. Nc3 {[%clk 0:03:00]}  Nf6 {[%clk 0:03:00]} 4. e3 {[%clk 0:03:00]}  e6 {[%clk 0:03:00]} 5. Nf3 {[%clk 0:03:01]}  Nbd7 {[%clk 0:03:00]} 6. Be2 {[%clk 0:03:01]}  dxc4 {[%clk 0:02:58]} 7. a4 {[%clk 0:03:01]}  a5 {[%clk 0:02:57]} 8. Bxc4 {[%clk 0:03:00]}  Bd6 {[%clk 0:02:55]} 9. O-O {[%clk 0:03:00]}  O-O {[%clk 0:02:55]} 10. e4 {[%clk 0:03:00]}  e5 {[%clk 0:02:52]} 11. dxe5 {[%clk 0:03:01]}  Nxe5 {[%clk 0:02:53]} 12. Nxe5 {[%clk 0:03:01]}  Bxe5 {[%clk 0:02:53]} 13. Qe2 {[%clk 0:02:50]}  Qe7 {[%clk 0:02:22]} 14. f3 {[%clk 0:02:42]}  Qc7 {[%clk 0:01:06]} 15. g3 {[%clk 0:02:40]}  Bh3 {[%clk 0:01:01]} 16. Rd1 {[%clk 0:02:30]}  Rad8 {[%clk 0:00:54]} 17. Be3 {[%clk 0:02:28]}  h5 {[%clk 0:00:28]} 18. Qf2 {[%clk 0:02:20]}  Rxd1+ {[%clk 0:00:22]} 19. Rxd1 {[%clk 0:02:20]}  Rd8 {[%clk 0:00:23]} 20. Bd4 {[%clk 0:02:04]}  Bxd4 {[%clk 0:00:11]} 21. Rxd4 {[%clk 0:02:05]}  Bc8 {[%clk 0:00:09]} 22. Qd2 {[%clk 0:02:02]}  Qb6 {[%clk 0:00:08]} 23. Ne2 {[%clk 0:02:00]}  Rxd4 {[%clk 0:00:07]} 24. Nxd4 {[%clk 0:01:58]}  Qc5 {[%clk 0:00:06]} 25. b3 {[%clk 0:01:53]}  Nd7 {[%clk 0:00:06]} 26. Kg2 {[%clk 0:01:53]}  Ne5 {[%clk 0:00:06]} 27. Be2 {[%clk 0:01:50]}  Be6 {[%clk 0:00:05]} 28. Nxe6 {[%clk 0:01:50]}  fxe6 {[%clk 0:00:06]} 29. f4 {[%clk 0:01:49]}  Ng4 {[%clk 0:00:05]} 30. Qd8+ {[%clk 0:01:44]}  Kh7 {[%clk 0:00:05]} 31. Bxg4 {[%clk 0:01:36]}  hxg4 {[%clk 0:00:06]} 32. Qh4+ {[%clk 0:01:37]}  Kg8 {[%clk 0:00:06]} 33. Qxg4 {[%clk 0:01:37]}  Qc2+ {[%clk 0:00:06]} 34. Kh3 {[%clk 0:01:35]}  Qxe4 {[%clk 0:00:06]} 35. Qd1 {[%clk 0:01:28]}  b5 {[%clk 0:00:06]} 36. Qd8+ {[%clk 0:01:25]}  Kh7 {[%clk 0:00:06]} 37. Qd7 {[%clk 0:01:21]}  Qf5+ {[%clk 0:00:05]} 38. Kh4 {[%clk 0:01:13]}  Qf6+ {[%clk 0:00:05]} 39. Kh3 {[%clk 0:01:13]}  Qf5+ {[%clk 0:00:05]} 40. Kg2 {[%clk 0:01:12]}  Qc2+ {[%clk 0:00:06]} 41. Kh3 {[%clk 0:01:11]}  Qxb3 {[%clk 0:00:06]} 42. Qxc6 {[%clk 0:01:09]}  bxa4 {[%clk 0:00:06]} 43. Qe4+ {[%clk 0:01:10]}  Kg8 {[%clk 0:00:04]} 44. Qa8+ {[%clk 0:01:09]}  Kh7 {[%clk 0:00:04]} 45. Qxa5 {[%clk 0:01:10]}  a3 {[%clk 0:00:04]} 46. Qh5+ {[%clk 0:01:10]}  Kg8 {[%clk 0:00:04]} 47. Qe8+ {[%clk 0:01:09]}  Kh7 {[%clk 0:00:04]} 48. f5 {[%clk 0:01:09]}  exf5 {[%clk 0:00:04]} 49. Qh5+ {[%clk 0:01:08]}  Kg8 {[%clk 0:00:04]} 50. Qe8+ {[%clk 0:01:08]}  Kh7 {[%clk 0:00:04]} 51. Qh5+ {[%clk 0:01:08]}  Kg8 {[%clk 0:00:04]} 52. Qxf5 {[%clk 0:01:09]}  a2 {[%clk 0:00:04]} 53. Qc8+ {[%clk 0:01:09]}  Kf7 {[%clk 0:00:04]} 54. Qd7+ {[%clk 0:01:09]}  Kf6 {[%clk 0:00:05]} 55. Qd4+ {[%clk 0:01:10]}  Kg6 {[%clk 0:00:05]} 56. Qd6+ {[%clk 0:01:09]}  Kh7 {[%clk 0:00:04]} 57. Qa6 {[%clk 0:01:08]}  Qb2 {[%clk 0:00:04]} 58. Qa5 {[%clk 0:01:07]}  a1=Q {[%clk 0:00:04]} 59. Qh5+ {[%clk 0:01:07]}  Kg8 {[%clk 0:00:04]} 60. Qe8+ {[%clk 0:01:08]}  Kh7 {[%clk 0:00:05]} 61. Qh5+ {[%clk 0:01:08]}  Kg8 {[%clk 0:00:05]} 62. Qe8+ {[%clk 0:01:09]}  Kh7 {[%clk 0:00:06]} 63. Qh5+ {[%clk 0:01:09]} 1/2-1/2


[Site "https://www.chess.com"]

[Event "Titled Tuesday Blitz July 6 2021"]
[White "Quparadze, Giga"]
[Black "Alavkin, Arseny"]
[WhiteFideId "13602250"]
[BlackFideId "4120612"]
[WhiteElo "2658"]
[BlackElo "2401"]
[Result "1-0"]
[Round "10"]
[TimeControl "180+1"]
[Date "2021.07.06"]
[WhiteClock "0:01:49"]
[BlackClock "0:00:45"]

1. e4 {[%clk 0:03:00]}  e6 {[%clk 0:03:00]} 2. Qe2 {[%clk 0:03:00]}  d5 {[%clk 0:03:00]} 3. exd5 {[%clk 0:03:01]}  Qxd5 {[%clk 0:03:00]} 4. Nc3 {[%clk 0:03:01]}  Qd8 {[%clk 0:03:01]} 5. d4 {[%clk 0:03:00]}  Nf6 {[%clk 0:02:51]} 6. Bg5 {[%clk 0:02:58]}  Be7 {[%clk 0:02:51]} 7. O-O-O {[%clk 0:02:58]}  O-O {[%clk 0:02:51]} 8. h4 {[%clk 0:02:58]}  c6 {[%clk 0:02:50]} 9. Qf3 {[%clk 0:02:56]}  a5 {[%clk 0:02:48]} 10. Bd3 {[%clk 0:02:55]}  a4 {[%clk 0:02:46]} 11. Ne4 {[%clk 0:02:50]}  a3 {[%clk 0:02:34]} 12. b3 {[%clk 0:02:37]}  Nd5 {[%clk 0:02:25]} 13. Bxe7 {[%clk 0:02:27]}  Qxe7 {[%clk 0:02:26]} 14. Ng5 {[%clk 0:02:27]}  h6 {[%clk 0:02:20]} 15. Ne2 {[%clk 0:02:22]}  Nb4 {[%clk 0:02:00]} 16. c3 {[%clk 0:02:15]}  Nxd3+ {[%clk 0:01:57]} 17. Qxd3 {[%clk 0:02:16]}  hxg5 {[%clk 0:01:51]} 18. hxg5 {[%clk 0:02:12]}  Qxg5+ {[%clk 0:01:52]} 19. f4 {[%clk 0:02:12]}  Qf5 {[%clk 0:01:50]} 20. Qf3 {[%clk 0:02:08]}  Re8 {[%clk 0:01:46]} 21. g4 {[%clk 0:02:07]}  Qg6 {[%clk 0:01:45]} 22. Rh5 {[%clk 0:01:59]}  Nd7 {[%clk 0:01:35]} 23. Rdh1 {[%clk 0:01:58]}  Kf8 {[%clk 0:01:34]} 24. f5 {[%clk 0:01:58]}  Qf6 {[%clk 0:01:26]} 25. Ng3 {[%clk 0:01:56]}  Nb6 {[%clk 0:00:56]} 26. g5 {[%clk 0:01:49]}  Qd8 {[%clk 0:00:44]} 27. f6 {[%clk 0:01:49]}  gxf6 {[%clk 0:00:45]} 1-0


[Site "https://www.chess.com"]